{"text_format":"1","workbook":"xlsx","n_sheets":8,"sheets":["Entry Form","Standing Long Jump","Balance","Shuttle","Vertical","Speed Bounce","Results","chart"],"not_rendered":{"charts":0,"images":4,"macros":1,"external_links":0,"defined_names":2,"comments":1,"pivot_tables":0},"unopened":[],"bounds":{"document_bytes":16777216,"sheet_cells":100000,"rows_first":2000,"rows_last":500,"rows_between":2000,"halvings":0,"cell_chars":16384,"cell_head_chars":4096},"cells_cut":0,"cells_raw":0,"read":"whole","date_system":"1900"}

{"sheet":"Entry Form","index":0,"n_rows":40,"n_cols":23,"rows_kept":40,"cut":false,"hidden":false,"merged":[]}
["mini"]
[null,null,null,null,null,"Age shown on","2020-09-30"]
[null,"Entry Form"]
[null,null,null,"Home Pentathlon Nottinghamshire",null,null,null,null,null,null,null,null,null,null,null,null,"Look up table",null,null,null,"Look up list CLUBS",null,"Look up list Gender"]
[null,null,null,null,null,null,null,"Age Range  6 to 15",null,null,null,null,null,null,null,null,5,"to young"]
[null,null,null,null,null,null,null,null,null,null,null,null,null,null,null,null,6,"U7",null,null,"Worksop AC",null,"Male"]
[null,"Ref Number","Club No if none","First Name","Surname","Club","Date of Birth","Gender","Working Age","Age group","Please Add Contact Email",null,null,null,null,null,7,"U9",null,null,"Notts AC",null,"Female"]
[null,"sample",425,"Billy","Bloggs","Worksop AC","2008-11-20","Male",{"$f":"IF(G8<1,\" \",(G$2-G8)/365)","v":11.868493150684932},{"$f":"IF(G8<1,\"\",VLOOKUP(I8,$Q$5:R$32,2,TRUE))","v":"U13"},"fredblog@ggmail.com",null,null,null,null,null,8,"U9",null,null,"Sutton AC"]
[null,1,null,null,null,null,null,null," ",{"$f":"IF(G9<1,\"\",VLOOKUP(I9,$Q$5:R$32,2,TRUE))","v":""},null,null,null,null,null,null,9,"U11",null,null,"Retford AC"]
[null,2,null,null,null,null,null,null," ",{"$f":"IF(G10<1,\"\",VLOOKUP(I10,$Q$5:R$32,2,TRUE))","v":""},null,null,null,null,null,null,10,"U11",null,null,"Mansfield AC"]
[null,3,null,null,null,null,null,null," ",{"$f":"IF(G11<1,\"\",VLOOKUP(I11,$Q$7:R$32,2,TRUE))","v":""},null,null,null,null,null,null,11,"U13",null,null,"Newark AC"]
[null,4,null,null,null,null,null,null," ",{"$f":"IF(G12<1,\"\",VLOOKUP(I12,$Q$7:R$32,2,TRUE))","v":""},null,null,null,null,null,null,12,"U13",null,null,"Rushcliffe AC"]
[null,5,null,null,null,null,null,null," ",{"$f":"IF(G13<1,\"\",VLOOKUP(I13,$Q$7:R$32,2,TRUE))","v":""},null,null,null,null,null,null,13,"U15",null,null,"Guest"]
[null,null,null,null,null,null,null,null,null,null,null,null,null,null,null,null,14,"U15"]
[null,null,null,null,null,null,null,null,null,null,null,null,null,null,null,null,15,"to old"]
[null,null,null,null,null,null,null,null,null,null,null,null,null,null,null,null,16,"to old"]
[]
[]
[]
[]
[]
[]
[]
[]
[]
[]
[null,"the following links are curtsey of  Sportshall Associates Limited"]
[]
[null,"For visual guidance on how to take part please see the Youtube playlist below"]
[null,null,null,"https://youtu.be/o0PH0Z88SMs?list=PL6DK6xTdLkmwBkVBUkZZ2L_oTT6VXErNO"]
[]
[null,"Guidence Notes"]
[null,null,null,"https://www.sportshall.org/wp-content/uploads/2020/08/Home-Pentathlon.pdf"]
[]
[null,"Vertical Jump Scale"]
[]
[null,null,null,"https://www.sportshall.org/wp-content/uploads/2020/08/Vertical-Jump-Home-Scale.pdf"]
[]
[]
[null,"When Complete please send the result chart to john to add to the ranking list (see results page for instructions)"]

{"sheet":"Standing Long Jump","index":1,"n_rows":38,"n_cols":6,"rows_kept":38,"cut":false,"hidden":false,"merged":[[36,1,36,7],[32,1,32,7],[34,1,34,7],[35,1,35,7]]}
[]
[null,"Home Pentathlon Nottinghamshire"]
[null,null,"Standing Long Jump"]
[null," Range 0.35 to 2.90 metres ( 2 decimal Points)"]
[]
[null,null,null,null,"Format"]
[]
[null,"Ref Number","Name ","Age","Performance","Points"]
[null,"sample",{"$f":"VLOOKUP(B9,Results!$B$6:K$11,7,FALSE)","v":"Billy  B"},{"$f":"VLOOKUP(B9,Results!$B$6:L$10,5,FALSE)","v":"U13"},2.5,{"$f":"IF(E9<0.2,\" \",VLOOKUP(E9,chart!Q$6:Y$105,9,TRUE))","v":72}]
[null,1,{"$f":"VLOOKUP(B10,Results!$B$6:K$10,7,TRUE)","v":"  "},{"$f":"VLOOKUP(B10,Results!$B$6:L$10,5,TRUE)","v":""},null,{"$f":"IF(E10<0.2,\" \",VLOOKUP(E10,chart!Q$6:Y$105,9,TRUE))","v":" "}]
[null,2,{"$f":"VLOOKUP(B11,Results!$B$6:K$10,7,TRUE)","v":"  "},{"$f":"VLOOKUP(B11,Results!$B$6:L$10,5,TRUE)","v":""},null,{"$f":"IF(E11<0.2,\" \",VLOOKUP(E11,chart!Q$6:Y$105,9,TRUE))","v":" "}]
[null,3,{"$f":"VLOOKUP(B12,Results!$B$6:K$10,7,TRUE)","v":"  "},{"$f":"VLOOKUP(B12,Results!$B$6:L$10,5,TRUE)","v":""},null,{"$f":"IF(E12<0.2,\" \",VLOOKUP(E12,chart!Q$6:Y$105,9,TRUE))","v":" "}]
[null,4,{"$f":"VLOOKUP(B13,Results!$B$6:K$10,7,TRUE)","v":"  "},{"$f":"VLOOKUP(B13,Results!$B$6:L$10,5,TRUE)","v":""},null,{"$f":"IF(E13<0.2,\" \",VLOOKUP(E13,chart!Q$6:Y$105,9,TRUE))","v":" "}]
[null,5,{"$f":"VLOOKUP(B14,Results!$B$6:K$11,7,TRUE)","v":"  "},{"$f":"VLOOKUP(B14,Results!$B$6:L$10,5,TRUE)","v":""},null,{"$f":"IF(E14<0.2,\" \",VLOOKUP(E14,chart!Q$6:Y$105,9,TRUE))","v":" "}]
[]
[null,"You will be using a tape measure the jump from  a line on the floor"]
[null,"Record just the best of three Jumps in metres (eg 2.45m)"]
[null,"Remember it is a two feet take off from a Standing Start"]
[]
[]
[]
[]
[]
[]
[]
[]
[]
[]
[]
[]
[null,"Rules (for normal competition)"]
[1,"The athlete must stand on the mat with both feet behind the take off datum line."]
[2," Techniques involving a crouch or rocking motion prior to the jump are permitted provided that both feet are                   alongside each other and retain contact with the mat until the start of the jump."]
[3,"No part of the athlete must touch the mat in front of the start line prior to take off."]
[4," The athlete should jump as far as possible from a standing position, with a two footed take off. One footed take offs are not permitted."]
[5,"The athlete must land on both feet, with both feet being placed on the mat. The measurement lines printed on the mat are for guidance only. If an athlete’s foot lands outside the graduated area and the judges are able to measure the jump, it should be recorded as a good trial."]
[6,"The athlete is not required to hold the landing position and may step forward after the jump. Should the athlete step back, fall back or touch the mat or floor behind their heel, a no jump should be recorded."]
[7," Measurement is taken from the take off line to the back of the closest heel on landing."]

{"sheet":"Balance","index":2,"n_rows":36,"n_cols":10,"rows_kept":36,"cut":false,"hidden":false,"merged":[[30,1,30,11],[31,1,31,11],[33,1,33,11],[34,1,34,11]]}
[]
[null,"Home Pentathlon Nottinghamshire"]
[null,null,"Balance"]
[]
[null,"Range whole numbers 1 to 60 Sec (max 15 in each cell)"]
[null,null,null,null,null,null,null,null,"Secs"]
[]
[null,"Ref Number","Name ","Age","Left","Rigth","Left","Right","Total (secs)","Points"]
[null,"sample",{"$f":"VLOOKUP(B9,Results!$B$6:K$10,7,TRUE)","v":"Billy  B"},{"$f":"VLOOKUP(B9,Results!$B$6:L$10,5,TRUE)","v":"U13"},12,10,9,15,{"$f":"E9+F9+G9+H9","v":46},{"$f":"IF(I9<1,\" \",VLOOKUP(I9,chart!P$6:Y$105,10,TRUE))","v":51}]
[null,1,{"$f":"VLOOKUP(B10,Results!$B$6:K$10,7,TRUE)","v":"  "},{"$f":"VLOOKUP(B10,Results!$B$6:L$10,5,TRUE)","v":""},null,null,null,null,{"$f":"E10+F10+G10+H10","v":0},{"$f":"IF(I10<1,\" \",VLOOKUP(I10,chart!P$6:Y$105,10,TRUE))","v":" "}]
[null,2,{"$f":"VLOOKUP(B11,Results!$B$6:K$10,7,TRUE)","v":"  "},{"$f":"VLOOKUP(B11,Results!$B$6:L$10,5,TRUE)","v":""},null,null,null,null,0,{"$f":"IF(I11<1,\" \",VLOOKUP(I11,chart!P$6:Y$105,10,TRUE))","v":" "}]
[null,3,{"$f":"VLOOKUP(B12,Results!$B$6:K$10,7,TRUE)","v":"  "},{"$f":"VLOOKUP(B12,Results!$B$6:L$10,5,TRUE)","v":""},null,null,null,null,0,{"$f":"IF(I12<1,\" \",VLOOKUP(I12,chart!P$6:Y$105,10,TRUE))","v":" "}]
[null,4,{"$f":"VLOOKUP(B13,Results!$B$6:K$10,7,TRUE)","v":"  "},{"$f":"VLOOKUP(B13,Results!$B$6:L$10,5,TRUE)","v":""},null,null,null,null,0,{"$f":"IF(I13<1,\" \",VLOOKUP(I13,chart!P$6:Y$105,10,TRUE))","v":" "}]
[null,5,{"$f":"VLOOKUP(B14,Results!$B$6:K$11,7,TRUE)","v":"  "},{"$f":"VLOOKUP(B14,Results!$B$6:L$10,5,TRUE)","v":""},null,null,null,null,0,{"$f":"IF(I14<1,\" \",VLOOKUP(I14,chart!P$6:Y$105,10,TRUE))","v":" "}]
[]
[]
[null,"Balance on a piece of wood flat on the floor maximum width  40mm "]
[null,"Time each leg in turn  (maximum 15sec each time)"]
[null,"Record the time each leg ( Maximum 15sec per Leg)"]
[null,"Enter the times in the yellow boxes"]
[]
[]
[]
[]
[]
[]
[]
[]
[null,"Rules (for Normal Competion)"]
[1,"Each athlete should be allowed a trial to become familiar with the event."]
[2," The athlete should place their left foot on the beam. The foot must be in line along the centre of the beam and not across the beam."]
[3," Bend the free leg backwards and hold the foot with the corresponding arm. The athlete should hold onto a judge’s arm to gain their balance. When the athlete is ready, they should release the judges supporting arm. This is the signal for the judge to start the stopwatch."]
[4," The watch stops if the athlete lets go of their foot, touches the floor or completes the maximum of 15 seconds."]
[5," Each athlete should have two trials on their left foot and two on their right, alternating each time. (eg, left, right, left, right)."]
[6," The time is recorded to the full second on the stopwatch. For example 12.7 = 12 seconds as 13 seconds has not been reached."]
[7,"The maximum each athlete can get is 60 seconds, (15 x 4)."]

{"sheet":"Shuttle","index":3,"n_rows":20,"n_cols":6,"rows_kept":20,"cut":false,"hidden":false,"merged":[]}
[]
[null,"Home Pentathlon Nottinghamshire"]
[null,null,"Shuttle Run"]
[null,"Range 20.1 to 70.0 Sec (1 decimal Points)"]
[]
[null,"20 x 5m =  100m"]
[]
[null,"Ref Number","Name ","Age","Performance","Points"]
[null,"sample",{"$f":"VLOOKUP(B9,Results!$B$6:K$10,7,TRUE)","v":"Billy  B"},{"$f":"VLOOKUP(B9,Results!$B$6:L$10,5,TRUE)","v":"U13"},55.5,{"$f":"IF(E9<1,\" \",VLOOKUP(E9,chart!W$6:Z$105,4,TRUE))","v":30}]
[null,1,{"$f":"VLOOKUP(B10,Results!$B$6:K$10,7,TRUE)","v":"  "},{"$f":"VLOOKUP(B10,Results!$B$6:L$10,5,TRUE)","v":""},null,{"$f":"IF(E10<1,\" \",VLOOKUP(E10,chart!W$6:Z$105,4,TRUE))","v":" "}]
[null,2,{"$f":"VLOOKUP(B11,Results!$B$6:K$10,7,TRUE)","v":"  "},{"$f":"VLOOKUP(B11,Results!$B$6:L$10,5,TRUE)","v":""},null,{"$f":"IF(E11<1,\" \",VLOOKUP(E11,chart!W$6:Z$105,4,TRUE))","v":" "}]
[null,3,{"$f":"VLOOKUP(B12,Results!$B$6:K$10,7,TRUE)","v":"  "},{"$f":"VLOOKUP(B12,Results!$B$6:L$10,5,TRUE)","v":""},null,{"$f":"IF(E12<1,\" \",VLOOKUP(E12,chart!W$6:Z$105,4,TRUE))","v":" "}]
[null,4,{"$f":"VLOOKUP(B13,Results!$B$6:K$10,7,TRUE)","v":"  "},{"$f":"VLOOKUP(B13,Results!$B$6:L$10,5,TRUE)","v":""},null,{"$f":"IF(E13<1,\" \",VLOOKUP(E13,chart!W$6:Z$105,4,TRUE))","v":" "}]
[null,5,{"$f":"VLOOKUP(B14,Results!$B$6:K$10,7,TRUE)","v":"  "},{"$f":"VLOOKUP(B14,Results!$B$6:L$10,5,TRUE)","v":""},null,{"$f":"IF(E14<1,\" \",VLOOKUP(E14,chart!W$6:Z$105,4,TRUE))","v":" "}]
[]
[null,"Note "]
[null,"This is 20 laps of 5m (total 100m)"]
[null,"Work between two lines on the floor"]
[null,"one foot must touch the lines at the end of each lap"]
[null,"Data Input Please Only fill in the Yellow boxes "]

{"sheet":"Vertical","index":4,"n_rows":49,"n_cols":6,"rows_kept":49,"cut":false,"hidden":false,"merged":[[46,1,46,7],[48,1,48,7],[36,1,36,7],[37,1,37,7],[40,1,40,7],[41,1,41,7],[44,1,44,7],[45,1,45,7]]}
[]
[null,"Home Pentathlon Nottinghamshire"]
[null,null,"Vertical Jump"]
[null,"Range  4 to 75 centimetres (Whole Numbers)"]
[]
[]
[]
[null,"Ref Number","Name ","Age","Performance","Points"]
[null,"sample",{"$f":"VLOOKUP(B9,Results!$B$6:K$10,7,TRUE)","v":"Billy  B"},{"$f":"VLOOKUP(B9,Results!$B$6:L$10,5,TRUE)","v":"U13"},25,{"$f":"IF(E9<1,\" \",VLOOKUP(E9,chart!V$6:Y$105,4,TRUE))","v":25}]
[null,1,{"$f":"VLOOKUP(B10,Results!$B$6:K$10,7,TRUE)","v":"  "},{"$f":"VLOOKUP(B10,Results!$B$6:L$10,5,TRUE)","v":""},null,{"$f":"IF(E10<1,\" \",VLOOKUP(E10,chart!V$6:Y$105,4,TRUE))","v":" "}]
[null,2,{"$f":"VLOOKUP(B11,Results!$B$6:K$10,7,TRUE)","v":"  "},{"$f":"VLOOKUP(B11,Results!$B$6:L$10,5,TRUE)","v":""},null,{"$f":"IF(E11<1,\" \",VLOOKUP(E11,chart!V$6:Y$105,4,TRUE))","v":" "}]
[null,3,{"$f":"VLOOKUP(B12,Results!$B$6:K$10,7,TRUE)","v":"  "},{"$f":"VLOOKUP(B12,Results!$B$6:L$10,5,TRUE)","v":""},null,{"$f":"IF(E12<1,\" \",VLOOKUP(E12,chart!V$6:Y$105,4,TRUE))","v":" "}]
[null,4,{"$f":"VLOOKUP(B13,Results!$B$6:K$10,7,TRUE)","v":"  "},{"$f":"VLOOKUP(B13,Results!$B$6:L$10,5,TRUE)","v":""},null,{"$f":"IF(E13<1,\" \",VLOOKUP(E13,chart!V$6:Y$105,4,TRUE))","v":" "}]
[null,5,{"$f":"VLOOKUP(B14,Results!$B$6:K$10,7,TRUE)","v":"  "},{"$f":"VLOOKUP(B14,Results!$B$6:L$10,5,TRUE)","v":""},null,{"$f":"IF(E14<1,\" \",VLOOKUP(E14,chart!V$6:Y$105,4,TRUE))","v":" "}]
[]
[null,"Remember"]
[null,"print the attached chart ( See the Entry form page for the link) or just mark and measure the wall"]
[null,"Stretch fully when measuring the start (see below)"]
[null,"Jump from a two footed start"]
[null,"Record the best of three jumps  (remember 39.8 is recored as 39)"]
[]
[]
[]
[]
[]
[]
[]
[]
[]
[]
[]
[]
[]
[]
[null,"Rules (For a Normal Competition)"]
[1,"The athlete stands with their back, head and heels touching the wall."]
[2,"Both arms should be stretched upwards to push the sliding scale up with their fingertips. Elbows and fingers must be straight and arms should touch the side of the head. Feet must stay flat on the floor."]
[3," Setting the slide - whilst it is clearly important that the slide is set accurately, judges should not have cause to handle the athlete, with the exception that it may assist both the athlete and the judge to guide the athlete’s fingers under the base of the slide. Younger athletes can find it difficult to push the slide up and the judge may assist by raising the slide first and then bringing it down to meet the athlete’s fingertips. The practice of “straightening” an athlete’s arms cannot be permitted. The following practice is recommended:"]
[4," The judge should encourage the athlete to stretch to their full extent and then, to stretch again."]
[5,"Usually the second stretch will set the slide a little higher."]
[6,"  If the judge is not satisfied that the athlete has achieved a full stretch, the athlete should be advised of this and given a further opportunity to set the slide."]
[7," If the judge remains dissatisfied with the stretch, the athlete should ask their team manager to accompany them for one further stretch."]
[8," A two centimetre penalty may be applied at the judge’s discretion."]
[9," Any further concerns should be referred to the Field Referee."]
[10," The recording of an athlete’s starting height, reading from the scale on the back plate, will remove the need to repeat the initial stretch for each further trial. The slide can be reset according to this reading. This eliminates further issues over the setting of the scale and saves time."]
[11," The athlete must dip their fingertips in powder and stand sideways on to the wall with the nominated jumping arm closest to the wall. They then jump from a standing position and touch the scale at the highest possible point."]
[12,"  An athlete may bend their knees and swing their arms in preparation for the event but their feet must not leave the ground until they take their jump."]
[13," It is deemed a no jump if an athlete’s “free” hand touches the wall during the jump."]
[14,"  Measurement should be taken to the nearest centimetre below the highest point of the chalk mark on the scale. The judges may pull down the sliding scale to record the exact height of the jump."]

{"sheet":"Speed Bounce","index":5,"n_rows":43,"n_cols":6,"rows_kept":43,"cut":false,"hidden":false,"merged":[[39,1,39,7],[40,1,40,7],[41,1,41,7],[42,1,42,7]]}
[]
[null,"Home Pentathlon Nottinghamshire"]
[null,null,"Speed Bounce"]
[null,"Range  3 to 75 (Whole numbers)"]
[]
[null,"Time 20 sec (all Ages)"]
[null,null,null,null,"centimetres"]
[null,"Ref Number","Name ","Age","Performance","Points"]
[null,"sample",{"$f":"VLOOKUP(B9,Results!$B$6:K$10,7,TRUE)","v":"Billy  B"},{"$f":"VLOOKUP(B9,Results!$B$6:L$10,5,TRUE)","v":"U13"},40,{"$f":"IF(E9<1,\" \",VLOOKUP(E9,chart!R$6:Y$105,8,TRUE))","v":38}]
[null,1,{"$f":"VLOOKUP(B10,Results!$B$6:K$10,7,TRUE)","v":"  "},{"$f":"VLOOKUP(B10,Results!$B$6:L$10,5,TRUE)","v":""},null,{"$f":"IF(E10<1,\" \",VLOOKUP(E10,chart!R$6:Y$105,8,TRUE))","v":" "}]
[null,2,{"$f":"VLOOKUP(B11,Results!$B$6:K$10,7,TRUE)","v":"  "},{"$f":"VLOOKUP(B11,Results!$B$6:L$10,5,TRUE)","v":""},null,{"$f":"IF(E11<1,\" \",VLOOKUP(E11,chart!R$6:Y$105,8,TRUE))","v":" "}]
[null,3,{"$f":"VLOOKUP(B12,Results!$B$6:K$10,7,TRUE)","v":"  "},{"$f":"VLOOKUP(B12,Results!$B$6:L$10,5,TRUE)","v":""},null,{"$f":"IF(E12<1,\" \",VLOOKUP(E12,chart!R$6:Y$105,8,TRUE))","v":" "}]
[null,4,{"$f":"VLOOKUP(B13,Results!$B$6:K$10,7,TRUE)","v":"  "},{"$f":"VLOOKUP(B13,Results!$B$6:L$10,5,TRUE)","v":""},null,{"$f":"IF(E13<1,\" \",VLOOKUP(E13,chart!R$6:Y$105,8,TRUE))","v":" "}]
[null,5,{"$f":"VLOOKUP(B14,Results!$B$6:K$10,7,TRUE)","v":"  "},{"$f":"VLOOKUP(B14,Results!$B$6:L$10,5,TRUE)","v":""},null,{"$f":"IF(E14<1,\" \",VLOOKUP(E14,chart!R$6:Y$105,8,TRUE))","v":" "}]
[null,"Note"]
[null,"Note I am useing 20 secs for all ages to make things score easier and it is Christmas"]
[null,"Record only Clear jumps"]
[null,"Minimum Height  150 mm or 6\""]
[null,"Use a book on edge or  rolled up towels to make the hieght "]
[null,"Use one person to time the jumps and one to count makes things easier"]
[]
[]
[]
[]
[]
[]
[]
[]
[]
[]
[]
[]
[]
[]
[]
[]
[]
[null,"Rules (for a Normal Competition)"]
[1,"  Participants must wear suitable footwear. An athlete is not permitted to compete in bare feet."]
[2," Speed Bounce is a two-footed jump in which an athlete must take off and land on both feet – the athlete’s feet should leave the mat simultaneously and land on the mat simultaneously."]
[3,"  The athlete should cross the wedge as many times as possible within the allocated time period as follows: Under 11’s (years 5 & 6) – 20 seconds, Under 13’s and Under 15’s (years 7, 8, 9 & 10) – 30 seconds."]
[4," Any athlete undertaking a trial and considered to be using an incorrect technique should be stopped. They should be offered an explanation as to the correct technique and permitted a fresh trial after an adequate period of rest."]
[5," The number of “good” bounces should be recorded, i.e. the number of times the athlete completes a two footed jump over the wedge. Whilst any bounce in which the athlete lands on the wedge should not be counted, it is not an offence to clip or brush the wedge."]

{"sheet":"Results","index":6,"n_rows":11,"n_cols":22,"rows_kept":11,"cut":false,"hidden":false,"merged":[]}
[null,"Home Pentathlon Nottinghamshire",null,null,null,null,null,null,null,null,null,"  "]
[null,"Results Table"]
[null,"No manual inputs on this Page",null,null,null,null,null,null,null,null,"metres",null,"number",null,"seconds",null,"centimetres",null,"number",null,null,"Contact Email"]
[null,null,null,null,null,null,null,null,null,null,"Distance","Points","Score","Points","Time","points","Distance","points","Number","Points"]
[null,"ref","Club No","First Name","Surname","Age","Initial","Name","Gender","Club","Long Jump",null,"Balance",null,"Shuttle Run",null,"Vertical Jump",null,"Speed Bounce",null,"Total"]
[null,"sample",425,"Billy","Bloggs","U13","B","Billy  B",{"$f":"IF(ISBLANK('Entry Form'!H8),\"\",'Entry Form'!H8)","v":"Male"},"Newark AC",{"$f":"VLOOKUP(B6,'Standing Long Jump'!$B$9:$F$13,4,FALSE)","v":2.5},{"$f":"IF('Standing Long Jump'!E9=0, \"0\",VLOOKUP(B6,'Standing Long Jump'!$B$9:$F$13,5,FALSE))","v":72},{"$f":"VLOOKUP($B6,Balance!$B$9:$J$14,8,FALSE)","v":46},{"$f":"IF(Balance!I9=0,0,VLOOKUP($B6,Balance!$B$9:$J$14,9,FALSE))","v":51},{"$f":"VLOOKUP($B6,Shuttle!$B$9:$F$13,4,FALSE)","v":55.5},{"$f":"IF(Shuttle!E9=0,\"0\",VLOOKUP($B6,Shuttle!$B$9:$F$13,5,FALSE))","v":30},{"$f":"VLOOKUP($B6,Vertical!$B$9:$F$13,4,FALSE)","v":25},{"$f":"IF(Vertical!E9=0,\"0\",VLOOKUP($B6,Vertical!$B$9:$F$13,5,FALSE))","v":25},{"$f":"VLOOKUP($B6,'Speed Bounce'!$B$9:$F$13,4,FALSE)","v":40},{"$f":"IF('Speed Bounce'!E9=0,\"0\",VLOOKUP($B6,'Speed Bounce'!$B$9:$F$13,5,FALSE))","v":38},{"$f":"L6+N6+P6+R6+T6","v":216},"fredblog@ggmail.com"]
[null,1,{"$f":"IF(ISBLANK('Entry Form'!C9),\"\",'Entry Form'!C9)","v":""},{"$f":"IF(ISBLANK('Entry Form'!D9),\"\",'Entry Form'!D9)","v":""},{"$f":"IF(ISBLANK('Entry Form'!E9),\"\",'Entry Form'!E9)","v":""},{"$f":"'Entry Form'!J9","v":""},{"$f":"LEFT(E7,1)","v":""},{"$f":"CONCATENATE(D7,L$1,G7)","v":"  "},{"$f":"IF(ISBLANK('Entry Form'!H9),\"\",'Entry Form'!H9)","v":""},{"$f":"IF(ISBLANK('Entry Form'!F9),\"\",'Entry Form'!F9)","v":""},{"$f":"VLOOKUP(B7,'Standing Long Jump'!$B$9:$F$13,4,FALSE)","v":0},{"$f":"IF('Standing Long Jump'!E10=0, \"0\",VLOOKUP(B7,'Standing Long Jump'!$B$9:$F$13,5,FALSE))","v":"0"},{"$f":"VLOOKUP($B7,Balance!$B$9:$J$14,8,FALSE)","v":0},{"$f":"IF(Balance!I10=0,0,VLOOKUP($B7,Balance!$B$9:$J$14,9,FALSE))","v":0},{"$f":"VLOOKUP($B7,Shuttle!$B$9:$F$13,4,FALSE)","v":0},{"$f":"IF(Shuttle!E10=0,\"0\",VLOOKUP($B7,Shuttle!$B$9:$F$13,5,FALSE))","v":"0"},{"$f":"VLOOKUP($B7,Vertical!$B$9:$F$13,4,FALSE)","v":0},{"$f":"IF(Vertical!E10=0,\"0\",VLOOKUP($B7,Vertical!$B$9:$F$13,5,FALSE))","v":"0"},{"$f":"VLOOKUP($B7,'Speed Bounce'!$B$9:$F$13,4,FALSE)","v":0},{"$f":"IF('Speed Bounce'!E10=0,\"0\",VLOOKUP($B7,'Speed Bounce'!$B$9:$F$13,5,FALSE))","v":"0"},{"$f":"L7+N7+P7+R7+T7","v":0},{"$f":"'Entry Form'!K9","v":0}]
[null,2,{"$f":"IF(ISBLANK('Entry Form'!C10),\"\",'Entry Form'!C10)","v":""},{"$f":"IF(ISBLANK('Entry Form'!D10),\"\",'Entry Form'!D10)","v":""},{"$f":"IF(ISBLANK('Entry Form'!E10),\"\",'Entry Form'!E10)","v":""},{"$f":"'Entry Form'!J10","v":""},{"$f":"LEFT(E8,1)","v":""},{"$f":"CONCATENATE(D8,L$1,G8)","v":"  "},{"$f":"IF(ISBLANK('Entry Form'!H10),\"\",'Entry Form'!H10)","v":""},{"$f":"IF(ISBLANK('Entry Form'!F10),\"\",'Entry Form'!F10)","v":""},{"$f":"VLOOKUP(B8,'Standing Long Jump'!$B$9:$F$13,4,FALSE)","v":0},{"$f":"IF('Standing Long Jump'!E11=0, \"0\",VLOOKUP(B8,'Standing Long Jump'!$B$9:$F$13,5,FALSE))","v":"0"},{"$f":"VLOOKUP($B8,Balance!$B$9:$J$14,8,FALSE)","v":0},{"$f":"IF(Balance!I11=0,0,VLOOKUP($B8,Balance!$B$9:$J$14,9,FALSE))","v":0},{"$f":"VLOOKUP($B8,Shuttle!$B$9:$F$13,4,FALSE)","v":0},{"$f":"IF(Shuttle!E11=0,\"0\",VLOOKUP($B8,Shuttle!$B$9:$F$13,5,FALSE))","v":"0"},{"$f":"VLOOKUP($B8,Vertical!$B$9:$F$13,4,FALSE)","v":0},{"$f":"IF(Vertical!E11=0,\"0\",VLOOKUP($B8,Vertical!$B$9:$F$13,5,FALSE))","v":"0"},{"$f":"VLOOKUP($B8,'Speed Bounce'!$B$9:$F$13,4,FALSE)","v":0},{"$f":"IF('Speed Bounce'!E11=0,\"0\",VLOOKUP($B8,'Speed Bounce'!$B$9:$F$13,5,FALSE))","v":"0"},{"$f":"L8+N8+P8+R8+T8","v":0},{"$f":"'Entry Form'!K10","v":0}]
[null,3,{"$f":"IF(ISBLANK('Entry Form'!C11),\"\",'Entry Form'!C11)","v":""},{"$f":"IF(ISBLANK('Entry Form'!D11),\"\",'Entry Form'!D11)","v":""},{"$f":"IF(ISBLANK('Entry Form'!E11),\"\",'Entry Form'!E11)","v":""},{"$f":"'Entry Form'!J11","v":""},{"$f":"LEFT(E9,1)","v":""},{"$f":"CONCATENATE(D9,L$1,G9)","v":"  "},{"$f":"IF(ISBLANK('Entry Form'!H11),\"\",'Entry Form'!H11)","v":""},{"$f":"IF(ISBLANK('Entry Form'!F11),\"\",'Entry Form'!F11)","v":""},{"$f":"VLOOKUP(B9,'Standing Long Jump'!$B$9:$F$13,4,FALSE)","v":0},{"$f":"IF('Standing Long Jump'!E12=0, \"0\",VLOOKUP(B9,'Standing Long Jump'!$B$9:$F$13,5,FALSE))","v":"0"},{"$f":"VLOOKUP($B9,Balance!$B$9:$J$14,8,FALSE)","v":0},{"$f":"IF(Balance!I12=0,0,VLOOKUP($B9,Balance!$B$9:$J$14,9,FALSE))","v":0},{"$f":"VLOOKUP($B9,Shuttle!$B$9:$F$13,4,FALSE)","v":0},{"$f":"IF(Shuttle!E12=0,\"0\",VLOOKUP($B9,Shuttle!$B$9:$F$13,5,FALSE))","v":"0"},{"$f":"VLOOKUP($B9,Vertical!$B$9:$F$13,4,FALSE)","v":0},{"$f":"IF(Vertical!E12=0,\"0\",VLOOKUP($B9,Vertical!$B$9:$F$13,5,FALSE))","v":"0"},{"$f":"VLOOKUP($B9,'Speed Bounce'!$B$9:$F$13,4,FALSE)","v":0},{"$f":"IF('Speed Bounce'!E12=0,\"0\",VLOOKUP($B9,'Speed Bounce'!$B$9:$F$13,5,FALSE))","v":"0"},{"$f":"L9+N9+P9+R9+T9","v":0},{"$f":"'Entry Form'!K11","v":0}]
[null,4,{"$f":"IF(ISBLANK('Entry Form'!C12),\"\",'Entry Form'!C12)","v":""},{"$f":"IF(ISBLANK('Entry Form'!D12),\"\",'Entry Form'!D12)","v":""},{"$f":"IF(ISBLANK('Entry Form'!E12),\"\",'Entry Form'!E12)","v":""},{"$f":"'Entry Form'!J12","v":""},{"$f":"LEFT(E10,1)","v":""},{"$f":"CONCATENATE(D10,L$1,G10)","v":"  "},{"$f":"IF(ISBLANK('Entry Form'!H12),\"\",'Entry Form'!H12)","v":""},{"$f":"IF(ISBLANK('Entry Form'!F12),\"\",'Entry Form'!F12)","v":""},{"$f":"VLOOKUP(B10,'Standing Long Jump'!$B$9:$F$13,4,FALSE)","v":0},{"$f":"IF('Standing Long Jump'!E13=0, \"0\",VLOOKUP(B10,'Standing Long Jump'!$B$9:$F$13,5,FALSE))","v":"0"},{"$f":"VLOOKUP($B10,Balance!$B$9:$J$14,8,FALSE)","v":0},{"$f":"IF(Balance!I13=0,0,VLOOKUP($B10,Balance!$B$9:$J$14,9,FALSE))","v":0},{"$f":"VLOOKUP($B10,Shuttle!$B$9:$F$13,4,FALSE)","v":0},{"$f":"IF(Shuttle!E13=0,\"0\",VLOOKUP($B10,Shuttle!$B$9:$F$13,5,FALSE))","v":"0"},{"$f":"VLOOKUP($B10,Vertical!$B$9:$F$13,4,FALSE)","v":0},{"$f":"IF(Vertical!E13=0,\"0\",VLOOKUP($B10,Vertical!$B$9:$F$13,5,FALSE))","v":"0"},{"$f":"VLOOKUP($B10,'Speed Bounce'!$B$9:$F$13,4,FALSE)","v":0},{"$f":"IF('Speed Bounce'!E13=0,\"0\",VLOOKUP($B10,'Speed Bounce'!$B$9:$F$13,5,FALSE))","v":"0"},0,{"$f":"'Entry Form'!K12","v":0}]
[null,5,{"$f":"IF(ISBLANK('Entry Form'!C13),\"\",'Entry Form'!C13)","v":""},{"$f":"IF(ISBLANK('Entry Form'!D13),\"\",'Entry Form'!D13)","v":""},{"$f":"IF(ISBLANK('Entry Form'!E13),\"\",'Entry Form'!E13)","v":""},{"$f":"'Entry Form'!J13","v":""},{"$f":"LEFT(E11,1)","v":""},{"$f":"CONCATENATE(D11,L$1,G11)","v":"  "},{"$f":"IF(ISBLANK('Entry Form'!H13),\"\",'Entry Form'!H13)","v":""},{"$f":"IF(ISBLANK('Entry Form'!F13),\"\",'Entry Form'!F13)","v":""},{"$f":"VLOOKUP(B11,'Standing Long Jump'!$B$9:$F$14,4,FALSE)","v":0},{"$f":"IF('Standing Long Jump'!E14=0, \"0\",VLOOKUP(B11,'Standing Long Jump'!$B$9:$F$14,5,FALSE))","v":"0"},{"$f":"VLOOKUP($B11,Balance!$B$9:$J$14,8,FALSE)","v":0},{"$f":"IF(Balance!I14=0,0,VLOOKUP($B11,Balance!$B$9:$J$14,9,FALSE))","v":0},{"$f":"VLOOKUP($B11,Shuttle!$B$9:$F$14,4,FALSE)","v":0},{"$f":"IF(Shuttle!E14=0,\"0\",VLOOKUP($B11,Shuttle!$B$9:$F$14,5,FALSE))","v":"0"},{"$f":"VLOOKUP($B11,Vertical!$B$9:$F$14,4,FALSE)","v":0},{"$f":"IF(Vertical!E14=0,\"0\",VLOOKUP($B11,Vertical!$B$9:$F$14,5,FALSE))","v":"0"},{"$f":"VLOOKUP($B11,'Speed Bounce'!$B$9:$F$14,4,FALSE)","v":0},{"$f":"IF('Speed Bounce'!E14=0,\"0\",VLOOKUP($B11,'Speed Bounce'!$B$9:$F$14,5,FALSE))","v":"0"},{"$f":"L11+N11+P11+R11+T11","v":0},{"$f":"'Entry Form'!K13","v":0}]

{"sheet":"chart","index":7,"n_rows":106,"n_cols":26,"rows_kept":106,"cut":false,"hidden":true,"merged":[]}
[null,null,1,0.35,3,null,null,null,4,20,null,null,null,null,null,1,0.35,3,null,null,null,4,20]
[null,null,60,2.9,75,null,null,null,75,70,null,null,null,null,null,60,2.9,75,null,null,null,75,70]
[null,null,null,null,null,null,null,null,null,0.2,null,null,null,null,11,10,9,8,7,6,5,4,3,2,1]
[null,"GIRLS POINTS","Balance test 4 x 15 sec","Standing long jump","Speed Bounc 20 sec","Target throw","Hi Stepper 4 x 8 m","Chest Push 1 kg","Vertical Jump","Shuttle Run 10 x 10 m","Standing Triple Jump","BOYS POINTS",null,null,"Points Field","Balance test 4 x 15 sec","Standing long jump","Speed Bounc 20 sec","Target throw","Hi Stepper 4 x 8 m","Chest Push 1 kg","Vertical Jump","Shuttle Run 20 x 5 m","Standing Triple Jump","Points Field","Points Track"]
[null,null,"sec","mtrs","number","scores","sec","mtrs","cms","sec","mtrs",null,null,null,null,"sec","mtrs","number","scores","sec","mtrs","cms","sec","mtrs"]
[null,70,60,2.4,70,24,11,10.5,59,24,6.85,{"$f":"B6","v":70},null,null,1,1,0.35,3,null,10,1.5,1,20.5,1,{"$f":"O6","v":1},100]
[null,69,59,2.37,69,null,11.2,null,null,{"$f":"J6+J$3","v":24.2},6.75,{"$f":"B7","v":69},null,null,2,2,0.38,4,null,10.5,null,2,21,1.1000000000000001,2,99]
[null,68,58,2.34,68,23,11.4,10.25,58,{"$f":"J7+J$3","v":24.4},6.65,68,null,null,3,3,0.41,6,1,11,null,3,21.5,1.3,3,98]
[null,67,57,2.31,67,null,11.6,null,57,24.599999999999998,6.55,67,null,null,4,4,0.44,8,null,11.5,2,4,22,1.5,4,97]
[null,66,null,2.2799999999999998,66,22,11.8,10,null,24.799999999999997,6.45,66,null,null,5,5,0.47,9,null,12,null,5,22.5,1.7,5,96]
[null,65,56,2.25,65,null,12,9.75,56,24.999999999999996,6.36,65,null,null,6,6,0.5,10,2,12.5,2.5,6,23,1.8,6,95]
[null,64,null,2.2200000000000002,64,null,12.2,9.5,55,25.199999999999996,6.28,64,null,null,7,7,0.53,11,null,13,null,7,23.5,1.9,7,94]
[null,63,55,2.19,63,21,12.4,null,null,25.399999999999995,6.2,63,null,null,8,8,0.56000000000000005,12,null,13.5,3.75,8,24,2,8,93]
[null,62,null,2.16,62,null,12.6,9.25,54,25.599999999999994,6.12,62,null,null,9,9,0.59,13,3,14,null,9,24.5,2.2000000000000002,9,92]
[null,61,54,2.13,61,null,12.8,null,53,25.799999999999994,6.04,61,null,null,10,10,0.62,14,null,14.5,3,10,25,2.4,10,91]
[null,60,null,2.1,60,20,13,9,null,25.999999999999993,5.96,60,null,null,11,11,0.65,15,null,15,null,11,25.5,2.5,11,90]
[null,59,53,2.0699999999999998,59,null,13.2,null,52,26.199999999999992,5.88,59,null,null,12,12,0.68,16,4,15.5,null,12,26,2.6,12,89]
[null,58,null,2.04,58,null,13.4,8.75,51,26.399999999999991,5.88,58,null,null,13,13,0.71,17,null,16,3.25,13,26.5,2.7,13,88]
[null,57,52,2.0099999999999998,57,19,13.6,8.5,null,26.599999999999991,5.72,57,null,null,14,14,0.74,18,null,16.5,null,14,27,2.8,14,87]
[null,56,51,1.98,56,null,13.8,8.25,50,26.79999999999999,5.64,56,null,null,15,15,0.77,19,5,17,null,15,27.5,2.9,15,86]
[null,55,50,1.95,55,null,14,8,49,26.999999999999989,5.56,55,null,null,16,16,0.8,20,null,17.5,3.5,16,28,3,16,85]
[null,54,49,1.92,54,18,14.2,null,48,27.199999999999989,5.48,54,null,null,17,17,0.83,21,null,18,null,17,28.5,3.1,17,84]
[null,53,48,1.89,53,null,14.4,7.75,47,27.399999999999988,5.4,53,null,null,18,18,0.86,null,6,18.5,null,18,29,3.2,18,83]
[null,52,47,1.86,52,null,14.5,7.5,46,27.599999999999987,5.34,52,null,null,19,19,0.89,22,null,19,3.75,19,29.5,3.3,19,82]
[null,51,46,1.83,51,17,14.6,null,45,27.799999999999986,5.28,51,null,null,20,20,0.92000000000000104,23,null,19.5,null,20,30,3.4,20,81]
[null,50,45,1.8,50,null,14.7,7.25,44,27.999999999999986,5.22,50,null,null,21,21,0.95000000000000095,24,7,20,null,21,30.5,3.5,21,80]
[null,49,44,1.78,49,null,14.8,7,43,28.199999999999985,5.16,49,null,null,22,22,0.98000000000000098,25,null,20.5,4,22,31,3.6,22,79]
[null,48,43,1.76,null,16,14.9,null,42,28.399999999999984,5.0999999999999996,48,null,null,23,23,1.01,null,null,21,null,23,31.5,3.7,23,78]
[null,47,42,1.74,48,null,15,6.75,41,28.599999999999984,5.04,47,null,null,24,24,1.04,26,8,21.5,null,24,32,3.8,24,77]
[null,46,41,1.72,null,null,15.1,6.5,40,28.799999999999983,4.9800000000000004,46,null,null,25,25,1.07,27,null,22,4.25,25,32.5,3.9,25,76]
[null,45,null,1.7,47,15,15.2,null,null,28.999999999999982,4.92,45,null,null,26,26,1.1000000000000001,28,null,22.5,null,26,33,3.94999999999999,26,75]
[null,44,40,1.68,46,null,15.3,6.25,39,29.199999999999982,4.8600000000000003,44,null,null,27,27,1.1299999999999999,29,9,23,null,27,33.5,3.9999999999999898,27,74]
[null,43,null,1.66,45,null,15.4,null,38,29.399999999999981,4.8,43,null,null,28,28,1.1599999999999999,30,null,23.5,4.5,28,34,4.0499999999999901,28,73]
[null,42,39,1.64,44,14,15.5,6,null,29.59999999999998,4.75,42,null,null,29,29,1.19,31,null,24,null,29,34.5,4.0999999999999899,29,72]
[null,41,null,1.62,43,null,15.6,null,37,29.799999999999979,4.7,41,null,null,30,30,1.22,32,10,24.5,null,30,35,4.1499999999999897,30,71]
[null,40,38,1.6,42,null,15.7,5.75,36,29.999999999999979,4.6500000000000004,40,null,null,31,31,1.25,33,null,25,4.75,31,35.5,4.1999999999999904,31,70]
[null,39,null,1.59,41,13,15.8,null,null,30.199999999999978,4.5999999999999996,39,null,null,32,32,1.28,34,null,25.5,null,32,36,4.2499999999999902,32,69]
[null,38,37,1.58,40,null,15.9,5.5,35,30.399999999999977,4.55,38,null,null,33,33,1.31,35,11,26,5,33,36.5,4.3,33,68]
[null,37,null,1.57,39,null,16,null,34,30.599999999999977,4.5,37,null,null,34,34,1.34,36,null,26.5,null,34,37,4.3499999999999996,34,67]
[null,36,36,1.56,38,12,16.100000000000001,5.25,null,30.799999999999976,4.45,36,null,null,35,35,1.37,37,null,27,null,35,37.5,4.4000000000000004,35,66]
[null,35,35,1.55,37,null,16.2,null,33,30.999999999999975,4.4000000000000004,35,null,null,36,36,1.4,38,12,27.5,5.25,36,38,4.45,36,65]
[null,34,34,1.54,36,null,16.3,null,32,31.199999999999974,4.3499999999999996,34,null,null,37,null,1.43,39,null,28,null,37,38.5,4.5,37,64]
[null,33,33,1.53,35,11,16.399999999999999,5,null,31.399999999999974,4.3,33,null,null,38,37,1.46,40,null,28.5,5.5,38,39,4.55,38,63]
[null,32,32,1.52,34,null,16.5,null,31,31.599999999999973,4.2499999999999902,32,null,null,39,null,1.49,41,13,29,null,39,39.5,4.5999999999999996,39,62]
[null,31,31,1.51,33,null,16.600000000000001,4.75,30,31.799999999999972,4.1999999999999904,31,null,null,40,38,1.52,42,null,29.5,5.75,40,40,4.6500000000000004,40,61]
[null,30,30,1.5,32,10,16.8,null,29,31.999999999999972,4.1499999999999897,30,null,null,41,null,1.55,43,null,30,null,41,40.5,4.7,41,60]
[null,29,29,1.48,31,null,17,null,null,32.199999999999974,4.0999999999999899,29,null,null,42,39,1.58,44,14,30.5,6,42,41,4.75,42,59]
[null,28,28,1.46,30,null,17.2,4.5,28,32.399999999999977,4.0499999999999901,28,null,null,43,null,1.61,45,null,31,null,43,41.5,4.8,43,58]
[null,27,27,1.44,29,9,17.399999999999999,null,27,32.59999999999998,3.9999999999999898,27,null,null,44,40,1.64,46,null,31.5,6.25,44,42,4.8600000000000003,44,57]
[null,26,26,1.42,28,null,17.600000000000001,null,26,32.799999999999983,3.94999999999999,26,null,null,45,null,1.67,47,15,32,null,45,42.5,4.92,45,56]
[null,25,25,1.4,27,null,18,4.25,null,32.999999999999986,3.9,25,null,null,46,41,1.7,null,null,32.5,6.5,46,43,4.9800000000000004,46,55]
[null,24,24,1.38,26,8,18.3,null,25,33.199999999999989,3.8,24,null,null,47,42,1.73,48,null,33,6.75,47,43.5,5.04,47,54]
[null,23,23,1.36,null,null,18.600000000000001,null,24,33.399999999999991,3.7,23,null,null,48,43,1.76,null,16,33.5,null,48,44,5.0999999999999996,48,53]
[null,22,22,1.34,25,null,18.899999999999999,4,23,33.599999999999994,3.6,22,null,null,49,44,1.79,49,null,34,7,49,44.5,5.16,49,52]
[null,21,21,1.32,24,7,19.2,null,null,33.799999999999997,3.5,21,null,null,50,45,1.82,50,null,34.5,7.25,50,45,5.22,50,51]
[null,20,20,1.3,23,null,19.600000000000001,null,22,34,3.4,20,null,null,51,46,1.85,51,17,35,null,51,45.5,5.28,51,50]
[null,19,19,1.25,22,null,20,3.75,null,34.200000000000003,3.3,19,null,null,52,47,1.88,52,null,35.5,7.5,52,46,5.34,52,49]
[null,18,18,1.2,null,6,20.5,null,21,34.400000000000006,3.2,18,null,null,53,48,1.91,53,null,36,7.75,53,46.5,5.4,53,48]
[null,17,17,1.1499999999999999,21,null,21,null,null,34.600000000000009,3.1,17,null,null,54,49,1.94,54,18,36.5,null,54,47,5.48,54,47]
[null,16,16,1.1000000000000001,20,null,21.5,3.5,20,34.800000000000011,3,16,null,null,55,50,1.97,55,null,37,8,55,47.5,5.56,55,46]
[null,15,15,1.05,19,5,22,null,19,35.000000000000014,2.9,15,null,null,56,51,2,56,null,37.5,8.25,56,48,5.64,56,45]
[null,14,14,1,18,null,22.5,null,18,35.200000000000017,2.8,14,null,null,57,52,2.0299999999999998,57,19,38,8.5,57,48.5,5.72,57,44]
[null,13,13,0.95,17,null,23,3.25,17,35.40000000000002,2.7,13,null,null,58,null,2.06,58,null,38.5,8.75,58,49,5.88,58,43]
[null,12,12,0.9,16,4,24,null,16,35.600000000000023,2.6,12,null,null,59,53,2.09,59,null,39,null,59,49.5,5.88,59,42]
[null,11,11,0.85,15,null,25,null,15,35.800000000000026,2.5,11,null,null,60,null,2.12,60,20,39.5,9,60,50,5.96,60,41]
[null,10,10,0.8,14,null,26,3,14,36.000000000000028,2.4,10,null,null,61,54,2.15,61,null,40,null,61,50.5,6.04,61,40]
[null,9,9,0.75,13,3,27,null,13,36.200000000000031,2.2000000000000002,9,null,null,62,null,2.1800000000000002,62,null,40.5,9.25,62,51,6.12,62,39]
[null,8,8,0.7,12,null,28,3.75,12,36.400000000000034,2,8,null,null,63,55,2.21,63,21,41,null,63,51.5,6.2,63,38]
[null,7,7,0.65,11,null,29,null,11,36.600000000000037,1.9,7,null,null,64,null,2.2400000000000002,64,null,41.5,9.5,64,52,6.28,64,37]
[null,6,6,0.6,10,2,30,2.5,10,36.80000000000004,1.8,6,null,null,65,56,2.27,65,null,42,9.75,65,52.5,6.36,{"$f":"O70","v":65},36]
[null,5,5,0.55000000000000004,9,null,32,null,9,37.000000000000043,1.7,{"$f":"B71","v":5},null,null,66,null,2.2999999999999998,66,22,42.5,10,66,53,6.45,66,35]
[null,4,4,0.5,8,null,34,2,8,{"$f":"J71+J$3","v":37.200000000000045},1.5,{"$f":"B72","v":4},null,null,67,57,2.33,67,null,43,null,67,53.5,6.55,67,34]
[null,3,3,0.45,6,1,36,null,7,{"$f":"J72+J$3","v":37.400000000000048},1.3,{"$f":"B73","v":3},null,null,68,58,2.36,68,23,43.5,10.25,68,54,6.65,68,33]
[null,2,2,0.4,4,null,38,null,6,{"$f":"J73+J$3","v":37.600000000000051},1.1000000000000001,{"$f":"B74","v":2},null,null,69,59,2.39,69,null,44,null,69,54.5,6.75,69,32]
[null,1,1,0.35,3,null,40,1.5,4,{"$f":"J74+J$3","v":37.800000000000054},1,{"$f":"B75","v":1},null,null,70,60,2.42,70,24,44.5,10.5,70,55,6.85,70,31]
[null," "," "," "," "," "," "," "," "," "," "," ",null,null,71," ",2.4500000000000002,71," ",45," ",71,55.5," ",71,30]
[null,null,null,null,null,null,null,null,null,null,null,null,null,null,72,null,2.48,72,null,45.5,null,72,56,null,72,29]
[null,null,null,null,null,null,null,null,null,null,null,null,null,null,73,null,2.5099999999999998,73,null,46,null,73,56.5,null,73,28]
[null,null,null,null,null,null,null,null,null,null,null,null,null,null,74,null,2.54,74,null,46.5,null,74,57,null,74,27]
[null,null,null,null,null,null,null,null,null,null,null,null,null,null,75,null,2.57,75,null,47,null,75,57.5,null,75,26]
[null,null,null,null,null,null,null,null,null,null,null,null,null,null,76,null,2.6,76,null,47.5,null,76,58,null,76,25]
[null,null,null,null,null,null,null,null,null,null,null,null,null,null,77,null,2.63,77,null,48,null,77,58.5,null,77,24]
[null,null,null,null,null,null,null,null,null,null,null,null,null,null,78,null,2.66,78,null,48.5,null,78,59,null,78,23]
[null,null,null,null,null,null,null,null,null,null,null,null,null,null,79,null,2.69,79,null,49,null,79,59.5,null,79,22]
[null,null,null,null,null,null,null,null,null,null,null,null,null,null,80,null,2.72,80,null,49.5,null,80,60,null,80,21]
[null,null,null,null,null,null,null,null,null,null,null,null,null,null,81,null,2.75,null,null,50,null,null,60.5,null,81,20]
[null,null,null,null,null,null,null,null,null,null,null,null,null,null,82,null,2.78,null,null,50.5,null,null,61,null,82,19]
[null,null,null,null,null,null,null,null,null,null,null,null,null,null,83,null,2.81,null,null,51,null,null,61.5,null,83,18]
[null,null,null,null,null,null,null,null,null,null,null,null,null,null,84,null,2.84,null,null,51.5,null,null,62,null,84,17]
[null,null,null,null,null,null,null,null,null,null,null,null,null,null,85,null,2.87,null,null,52,null,null,62.5,null,85,16]
[null,null,null,null,null,null,null,null,null,null,null,null,null,null,86,null,2.9,null,null,null,null,null,63,null,86,15]
[null,null,null,null,null,null,null,null,null,null,null,null,null,null,87,null,2.93,null,null,null,null,null,63.5,null,87,14]
[null,null,null,null,null,null,null,null,null,null,null,null,null,null,88,null,2.96,null,null,null,null,null,64,null,88,13]
[null,null,null,null,null,null,null,null,null,null,null,null,null,null,89,null,2.99,null,null,null,null,null,64.5,null,89,12]
[null,null,null,null,null,null,null,null,null,null,null,null,null,null,90,null,3.02,null,null,null,null,null,65,null,90,11]
[null,null,null,null,null,null,null,null,null,null,null,null,null,null,91,null,null,null,null,null,null,null,65.5,null,91,10]
[null,null,null,null,null,null,null,null,null,null,null,null,null,null,92,null,null,null,null,null,null,null,66,null,92,9]
[null,null,null,null,null,null,null,null,null,null,null,null,null,null,93,null,null,null,null,null,null,null,66.5,null,93,8]
[null,null,null,null,null,null,null,null,null,null,null,null,null,null,94,null,null,null,null,null,null,null,67,null,94,7]
[null,null,null,null,null,null,null,null,null,null,null,null,null,null,95,null,null,null,null,null,null,null,67.5,null,95,6]
[null,null,null,null,null,null,null,null,null,null,null,null,null,null,96,null,null,null,null,null,null,null,68,null,96,5]
[null,null,null,null,null,null,null,null,null,null,null,null,null,null,97,null,null,null,null,null,null,null,68.5,null,97,4]
[null,null,null,null,null,null,null,null,null,null,null,null,null,null,98,null,null,null,null,null,null,null,69,null,98,3]
[null,null,null,null,null,null,null,null,null,null,null,null,null,null,99,null,null,null,null,null,null,null,69.5,null,99,2]
[null,null,null,null,null,null,null,null,null,null,null,null,null,null,100,null,null,null,null,null,null,null,70,null,100,1]
[null,null,null,null,null,null,null,null,null,null,null,null,null,null,{"$f":"O4","v":"Points Field"},{"$f":"P4","v":"Balance test 4 x 15 sec"},{"$f":"Q4","v":"Standing long jump"},"Speed Bounc 20 sec","Target throw","Hi Stepper 4 x 8 m","Chest Push 1 kg","Vertical Jump","Shuttle Run 20 x 5 m","Standing Triple Jump","Points Field","Points Track"]